Cogmind - Beta 13 *** ADVENTURER MODE // 2024.04.13 @ 16:02:05 Player: Scribs Result: Core destroyed Performance ------------- Evolutions (6) 3000 Regions Visited (21) 4200 Robots Destroyed (206) 1030 Value Destroyed (8583) 8583 Prototype IDs (25) 500 Alien Tech Used (0) 0 Bonus (3929) 3929 TOTAL SCORE: 21242 Bonus ------- Pacifist 200 High Alert Combat Kills 985 Follower Combat Kills 1273 Met Imprinter 300 Was Imprinted 300 Met Warlord at Base 500 MAIN.C Attacked Warlord 500 Warlord Defense Kills 480 Friendly Fire -609 Cogmind --------- Core Integrity 0/1150 Matter 133/300 Energy 100/100 System Corruption 9% Temperature Critical (1149) Movement Core (900) Ox17 Location -4/Factory Parts ------- > --- POWER (2) -------- (None) > --- PROPULSION (6) --- Myomer Leg Myomer Leg > --- UTILITY (7) ------ Advanced Cryofiber Web High-capacity Storage Unit Advanced Visual Processing Unit Experimental Optical Array > --- WEAPON (4) ------- Micro-nuke Launcher Nanosword > --- INVENTORY (20) --- Neutrino Core Micro Fission Core Micro Fission Core Light Antimatter Reactor Flexi-carbon Leg Flexi-carbon Leg Myomer Leg Myomer Leg Compact Wheel Centrium Wheel Improved Heat Sink Experimental Core Analyzer Advanced Kinecellerator Improved Transmission Jammer Hardened Light Armor Plating Mobile Refinery Mk. CCLXVII Improved Recalibrator Spear Peak State ------------ > --- POWER ------------ Neutrino Core Reinforced Fission Core > --- PROPULSION ------- Myomer Leg Myomer Leg Myomer Leg Myomer Leg Myomer Leg Myomer Leg > --- UTILITY ---------- Advanced Cryofiber Web High-capacity Storage Unit Advanced Visual Processing Unit Experimental Optical Array Improved Kinecellerator Improved Medium Armor Plating Improved Shield Generator > --- WEAPON ----------- Phase Gun Dispersion Rifle Advanced Plasma Cannon Nanosword > --- INVENTORY -------- Neutrino Core Micro Fission Core Micro Fission Core Light Antimatter Reactor Flexi-carbon Leg Flexi-carbon Leg Myomer Leg Myomer Leg Compact Wheel Centrium Wheel Improved Heat Sink Experimental Core Analyzer Advanced Kinecellerator Improved Transmission Jammer Hardened Light Armor Plating Mobile Refinery Mk. CCLXVII Improved Recalibrator KE Penetrator Improved Proton Missile Launcher Spear [Rating: 127] Favorites ----------- Power Antimatter Reactor Engine Heavy Deuterium Engine Power Core Micro Nuclear Core Reactor Antimatter Reactor Propulsion Armored Huge Wheel Leg Myomer Leg Wheel Armored Huge Wheel Utility Advanced Visual Processing Unit Device Improved Sensor Array Storage High-capacity Storage Unit Processor Advanced Visual Processing Unit Protection Improved Medium Armor Plating Weapon Gatling Laser Energy Gun Gatling Laser Energy Cannon Advanced Plasma Cannon Ballistic Gun Makeshift Shrapnel Gun Ballistic Cannon Heavy Gauss Cannon Launcher Heavy Missile Launcher Special Weapon Remote Datajack Impact Weapon Heavy Flail Slashing Weapon Nanosword Piercing Weapon Spear Special Melee Weapon Datajack Build | -11 -10 -10 -9 -9 -8 -7 -7 -7 -6 -6 -6 -6 -5 -5 -5 -5 -5 -5 -5 -4 -4 ------- Run | Yrd Mat Min Mat Sto Mat Fac Low Low Fac Low Low Zio Pro Fac Was Fac Upp Upp War Pro Fac Slots Evolved 12 | . . . 2 . 2 2 . . 2 . . . . 2 . . . . . . 2 Power 1 | . . . . . . . . . . . . . . 1 . . . . . . . Propulsion 4 | . . . 2 . . . . . . . . . . 1 . . . . . . 1 Utility 5 | . . . . . 2 1 . . 2 . . . . . . . . . . . . Weapon 2 | . . . . . . 1 . . . . . . . . . . . . . . 1 Parts Attached 246 | 6 1 2 8 19 11 58 5 3 5 8 14 3 5 6 7 2 7 4 6 22 44 Power 25 | 1 . . 1 2 2 5 . . . . . . . 3 2 . . . 1 3 5 Engine 8 | 1 . . 1 2 . 3 . . . . . . . 1 . . . . . . . Core 11 | . . . . . 2 2 . . . . . . . 2 . . . . . 1 4 Reactor 6 | . . . . . . . . . . . . . . . 2 . . . 1 2 1 Propulsion 42 | 2 . . 3 9 3 3 . . . 1 . . 1 . . 1 . . . 2 17 Treads . | . . . . . . . . . . . . . . . . . . . . . . Leg 28 | 2 . . 3 9 1 . . . . . . . . . . . . . . 2 11 Wheel 14 | . . . . . 2 3 . . . 1 . . 1 . . 1 . . . . 6 Hover . | . . . . . . . . . . . . . . . . . . . . . . Flight . | . . . . . . . . . . . . . . . . . . . . . . Utility 83 | 1 1 . 2 . 3 23 3 . 4 4 3 3 2 3 . 1 2 3 5 9 11 Device 40 | . 1 . . . 1 12 3 . 1 1 1 2 . 1 . 1 1 3 2 4 6 Storage 12 | 1 . . 2 . . 3 . . 1 2 1 1 . 1 . . . . . . . Processor 6 | . . . . . . 1 . . . . 1 . 1 . . . . . 2 1 . Hackware . | . . . . . . . . . . . . . . . . . . . . . . Protection 25 | . . . . . 2 7 . . 2 1 . . 1 1 . . 1 . 1 4 5 Artifact . | . . . . . . . . . . . . . . . . . . . . . . Weapon 96 | 2 . 2 2 8 3 27 2 3 1 3 11 . 2 . 5 . 5 1 . 8 11 Energy Gun 32 | 2 . 1 . 3 . 7 2 1 . . 4 . . . 2 . 2 . . 4 4 Energy Cannon 9 | . . . 1 2 2 2 . . . . . . . . . . . . . 1 1 Ballistic Gun 6 | . . . 1 . . 1 . . . . 2 . 1 . . . . . . . 1 Ballistic Cannon 5 | . . . . 1 . . . . 1 . 2 . . . . . . . . 1 . Launcher 22 | . . . . . . 8 . 1 . 3 2 . 1 . . . 2 . . 2 3 Special Weapon 1 | . . . . . . 1 . . . . . . . . . . . . . . . Impact Weapon 11 | . . . . 2 1 7 . . . . 1 . . . . . . . . . . Slashing Weapon 6 | . . . . . . 1 . . . . . . . . 2 . . 1 . . 2 Piercing Weapon 3 | . . . . . . . . 1 . . . . . . 1 . 1 . . . . Special Melee Weapon 1 | . . 1 . . . . . . . . . . . . . . . . . . . Unidentified Prototypes 13 | . . . . 3 . 4 . . . . . 1 . 1 1 . . . 3 . . Corrupted Parts 1 | . . . . . . . . . . . . . . . . . . . . . 1 System Corruption 1 | . . . . . . . . . . . . . . . . . . . . . 1 Parts Lost 47 | . . . . 1 1 4 . 1 . 2 2 . 2 . . . . . 5 9 20 Power 7 | . . . . . . 2 . . . . . . . . . . . . 1 1 3 Propulsion 13 | . . . . 1 . 1 . . . 1 . . 1 . . . . . 1 2 6 Utility 17 | . . . . . 1 1 . . . 1 2 . 1 . . . . . 3 3 5 Weapon 10 | . . . . . . . . 1 . . . . . . . . . . . 3 6 Highest Loss Streak 12 | . . . . 1 1 2 . 1 . 1 2 . 2 . . . . . 4 4 12 To Critical Strikes 1 | . . . . . . . . . . . . . . . . . . . . 1 . Average Slot Usage (%) 82 | . 99 98 93 98 94 75 68 67 74 84 83 86 85 76 75 78 87 88 87 81 88 Engine 3 | . 14 14 11 11 1 1 7 7 6 6 6 6 6 5 1 . . . . . . Core 2 | . . . . . 8 5 . . . . . . . 3 1 . . . . 4 7 Reactor 2 | . . . . . . . . . . . . . . . 7 11 11 11 10 4 2 Leg 7 | . 28 28 38 44 31 . . . . . . . . . . . . . . 4 20 Wheel 10 | . . . . . 2 14 15 15 13 12 13 13 13 11 11 13 17 17 16 7 1 Device 12 | . 13 14 11 11 10 13 7 7 10 13 12 13 13 16 17 17 22 23 21 4 7 Storage 8 | . 14 14 11 11 9 9 7 7 6 11 13 12 13 6 5 5 5 5 5 5 5 Processor 6 | . . . . . . 2 7 7 6 6 6 13 13 5 5 5 5 5 6 17 13 Protection 6 | . . . . . 14 5 7 7 15 12 9 6 5 5 5 5 5 5 4 10 6 Energy Gun 7 | . 28 14 1 6 7 11 6 5 6 4 6 . . . 5 11 10 11 11 3 10 Energy Cannon 1 | . . . 9 5 3 . . . . . . . . . . . . . . 3 2 Ballistic Gun 2 | . . . 9 3 . . . . . . 1 13 11 11 5 . . . . . . Impact Weapon 2 | . . . . 4 6 3 . . . . 3 6 6 5 . . . . . . . Slashing Weapon 1 | . . . . . . 1 7 3 . . . . . . . . . . 5 4 4 Piercing Weapon 1 | . . . . . . . . 1 6 6 2 . . . 4 5 5 4 . . . Naked Turns . | . . . . . . . . . . . . . . . . . . . . . . Heaviest Build 126 | 11 12 12 31 35 40 64 64 63 100 103 92 72 76 95 108 108 108 101 101 105 126 Greatest Support 150 | 20 20 20 40 52 56 56 56 56 56 56 56 56 56 56 56 66 66 66 66 50 150 Greatest Overweight (x) 17 | . . . . . 1 1 1 1 1 3 1 1 1 1 1 1 1 1 2 3 17 Average Overweight (x) . | . . . . . . . 1 . 1 1 1 1 1 1 1 1 1 1 1 2 . Largest Inventory Capacity 20 | 8 8 8 15 15 15 15 15 15 20 20 20 20 20 20 20 20 20 20 20 20 20 Average Capacity 17 | 6 8 8 9 15 15 15 15 15 19 20 20 20 20 20 20 20 20 20 20 20 20 Most Carried 20 | 2 8 8 9 15 15 15 15 15 20 20 20 20 20 20 20 20 20 20 20 20 20 Average Carried 16 | 1 5 7 8 14 14 14 15 14 16 19 18 19 18 19 19 19 19 20 19 16 18 Final Capacity 20 | 8 8 8 15 15 15 15 15 15 20 20 20 20 20 20 20 20 20 20 20 20 20 Final Carried 20 | 2 8 8 9 15 15 15 15 15 20 17 20 19 18 20 20 20 20 20 20 15 18 Class Distribution -------------------- 62% | Mutant 11% | Scavenger-Mutant 10% | Scavenger-Assassin 6% | Scavenger-Tank 3% | Skirmisher Dominant Class ---------------- Mutant | -10/Materials Mutant | -10/Mines Mutant | -9/Materials Mutant | -9/Storage Mutant | -8/Materials Mutant | -7/Factory Mutant | -7/Lower Caves Mutant | -7/Lower Caves Mutant | -6/Factory Mutant | -6/Lower Caves Mutant | -6/Lower Caves Mutant | -6/Zion Mutant | -5/Proximity Caves Mutant | -5/Factory Scavenger-Mutant | -5/Waste Scavenger-Mutant | -5/Factory Scavenger-Assassin | -5/Upper Caves Scavenger-Assassin | -5/Upper Caves Scavenger-Assassin | -5/Warlord Scavenger-Mutant | -4/Proximity Caves Scavenger-Tank | -4/Factory Resources | -11 -10 -10 -9 -9 -8 -7 -7 -7 -6 -6 -6 -6 -5 -5 -5 -5 -5 -5 -5 -4 -4 ----------- Run | Yrd Mat Min Mat Sto Mat Fac Low Low Fac Low Low Zio Pro Fac Was Fac Upp Upp War Pro Fac Matter Collected 5089 | 221 . 12 172 319 50 1352 140 69 . 273 486 100 191 80 110 . 148 42 90 466 768 Remotely . | . . . . . . . . . . . . . . . . . . . . . . Salvage Created 7987 | . . . 182 723 660 1928 62 90 . 173 510 . 156 70 . . 27 . 174 822 2410 Parts 322 | . . . 10 47 21 97 3 1 . 13 9 . 8 . . . 1 . 4 25 83 Haulers Intercepted . | . . . . . . . . . . . . . . . . . . . . . . Recyclers Shooed 6 | . . . . 1 2 1 . . . . . . . . . . . . . . 2 Parts Field Recycled . | . . . . . . . . . . . . . . . . . . . . . . Retrieved Matter . | . . . . . . . . . . . . . . . . . . . . . . Parts Self-Destructed 67 | . . . . . . . . 4 . 12 7 . 15 . . . 6 4 . 19 . Prevented 6 | . . . . . . . . . . . 2 . 1 . . . . . . 3 . Kills | -11 -10 -10 -9 -9 -8 -7 -7 -7 -6 -6 -6 -6 -5 -5 -5 -5 -5 -5 -5 -4 -4 ------- Run | Yrd Mat Min Mat Sto Mat Fac Low Low Fac Low Low Zio Pro Fac Was Fac Upp Upp War Pro Fac Combat Hostiles Destroyed 163 | . . . 4 17 8 51 1 4 . 7 12 . 7 1 . . . . 3 16 32 Melee 41 | . . . . 3 1 17 1 . . 2 4 . 1 . . . . . 3 2 7 Guns 40 | . . . 1 5 2 13 . . . 4 1 . 4 1 . . . . . 1 8 Cannons 26 | . . . 3 8 2 . . . . . 1 . . . . . . . . 8 4 AOE 46 | . . . . . . 19 . 4 . 1 3 . 2 . . . . . . 5 12 Classes Destroyed 17 | . . . 2 4 . 6 1 . . 1 . . . . . . . . 1 2 . Worker 6 | . . . . 1 2 3 . . . . . . . . . . . . . . . Builder 10 | . . . . . . 5 . . . . . . . 1 . . . . . . 4 Recycler 16 | . . . . 1 4 4 . . . . . . . . . . . . . . 7 Minesweeper 1 | . . . . . . . . . . . . . . . . . . . . 1 . Mechanic 1 | . . . . . . 1 . . . . . . . . . . . . . . . Drone 2 | . . . . . . . . . . . . . . . . . . . . 2 . Watcher 8 | . . . . 2 2 3 . . . . . . . . . . . . . . 1 Swarmer 43 | . . . . 7 3 15 . . . 4 2 . 3 . . . . . . . 9 Grunt 47 | . . . 3 3 2 11 . 4 . 1 7 . . . . . . . . 7 9 Brawler 3 | . . . . . . 1 . . . . . . . . . . . . 1 1 . Duelist 2 | . . . . . . 1 . . . . 1 . . . . . . . . . . Sentry 29 | . . . 1 7 3 7 . . . 1 1 . 1 1 . . . . . 1 6 Hunter 12 | . . . . . . 5 . . . . 1 . 2 . . . . . . 2 2 Programmer 22 | . . . . . . 11 . . . . . . 1 . . . . . 1 3 6 Behemoth 1 | . . . . . . . . . . 1 . . . . . . . . . . . Striker 1 | . . . . . . . . . . . . . . . . . . . 1 . . Wasp 1 | . . . . . . . . . . . . . . . . . 1 . . . . Mutant 1 | . . . . . . . 1 . . . . . . . . . . . . . . Best Kill Streak 11 | . . . 3 6 10 6 1 4 . 2 7 . 3 1 . . . . 2 8 11 Combat Bots Only 8 | . . . 3 6 3 4 1 4 . 2 7 . 3 1 . . . . 2 8 7 Max Kills in Single Turn 6 | . . . 1 1 1 3 1 2 . 2 3 . 1 1 . . 1 . 1 3 6 Gunslinging 1 | . . . . . . . . . . . . . . . . . . . . . 1 Exploded 4 | . . . . . . 3 . 2 . 1 3 . 1 . . . . . . 3 4 Melee 1 | . . . . 1 1 1 1 . . 1 1 . 1 . . . . . 1 1 1 Uniques/NPCs Destroyed . | . . . . . . . . . . . . . . . . . . . . . . Combat | -11 -10 -10 -9 -9 -8 -7 -7 -7 -6 -6 -6 -6 -5 -5 -5 -5 -5 -5 -5 -4 -4 -------- Run | Yrd Mat Min Mat Sto Mat Fac Low Low Fac Low Low Zio Pro Fac Was Fac Upp Upp War Pro Fac Hostile Shots Fired 1269 | . . . 30 80 52 457 7 10 . 93 58 . 26 8 . . 9 4 62 146 227 Missed 371 | . . . 7 12 15 171 2 1 . 37 11 . 6 4 . . 4 1 18 41 41 Damage Taken 11889 | . . . 285 641 381 2817 59 122 . 501 449 . 275 79 . . 125 57 641 1531 3926 Core 2076 | . . . 50 58 52 199 . 13 . 42 34 . . 18 . . 14 . 103 206 1287 Absorbed by Shields 913 | . . . . . . . . . . 263 191 . . . . . . . 219 . 240 Ignored by Resistances 3378 | . . . 83 184 112 841 17 35 . 218 180 . 79 21 . . 34 15 236 441 882 Regen/Repaired (Parts) 755 | . . . 81 . . 612 . . . . . . . . 40 . 4 18 . . . Core Remaining (%) 84 | 100 . 100 . 73 90 . . 69 . . . . 91 . . . . . . 65 . Volleys Fired 317 | . . . 23 46 11 87 . 4 . 20 9 . 18 5 . . 5 1 5 37 46 Largest 4 | . . . 2 2 2 2 . 1 . 2 2 . 2 2 . . 2 2 2 3 4 Hottest 274 | . . . 80 124 124 141 . 36 . 133 128 . 63 48 . . 175 175 175 257 274 Shots Fired 606 | . . . 46 88 20 133 . 4 . 40 11 . 23 10 . . 10 2 10 83 126 Gun 340 | . . . 32 43 11 89 . . . 8 1 . 19 10 . . 4 2 10 22 89 Cannon 167 | . . . 14 45 9 3 . . . 8 7 . . . . . . . . 55 26 Launcher 99 | . . . . . . 41 . 4 . 24 3 . 4 . . . 6 . . 6 11 Special . | . . . . . . . . . . . . . . . . . . . . . . Kinetic 146 | . . . 23 33 . . . . . 8 7 . 19 10 . . . . . 29 17 Thermal 349 | . . . 14 55 20 89 . . . 8 1 . . . . . 4 2 10 48 98 Explosive 92 | . . . . . . 41 . 4 . 20 3 . 4 . . . 6 . . 3 11 Electromagnetic 19 | . . . 9 . . 3 . . . 4 . . . . . . . . . 3 . Robot Hit Streak 30 | . . . 10 30 25 30 . 8 . 19 20 . 5 7 . . 9 7 8 16 16 Robot Miss Streak 4 | . . . 1 2 3 3 . . . 2 1 . 2 2 . . 1 . 1 3 4 Penetration Max 1 | . . . . . . . . . . . . . . . . . . . . . 1 Secondary Targets 4 | . . . . . . . . . . . . . 1 . . . . . . . 3 Max Gunslinging Chain 2 | . . . . . . . . . . . . . 1 . . . . . . . 2 Shots Hit Robots 591 | . . 1 30 67 31 146 5 4 . 39 25 . 23 10 . . 9 2 16 65 118 Core Hits 348 | . . . 6 26 10 111 2 7 . 17 17 . 24 7 . . 8 1 4 32 76 Critical Kills 5 | . . . . . 1 1 . . . . . . . . . . . . . . 3 Critical Parts Destroyed 15 | . . . . 1 4 3 . . . . 3 . . 1 . . . . . . 3 Critical Strikes 52 | . . . 1 2 7 9 4 . . 1 3 . . 1 . . . . 2 6 16 Burn 15 | . . . . 1 2 4 . . . . . . . . . . . . . 2 6 Destroy 7 | . . . . . . . . . . . . . . . . . . . . . 7 Blast 5 | . . . . . . . . . . 1 . . . . . . . . . 4 . Corrupt 1 | . . . 1 . . . . . . . . . . . . . . . . . . Smash 14 | . . . . 1 5 4 . . . . 3 . . 1 . . . . . . . Sever 10 | . . . . . . 1 4 . . . . . . . . . . . 2 . 3 Melee Attacks 218 | . . 1 1 16 20 53 6 . 15 7 21 . 2 13 . . . . 9 4 50 Impact 88 | . . . . 16 20 16 . . . . 21 . 2 13 . . . . . . . Slashing 106 | . . . . . . 37 6 . . . . . . . . . . . 9 4 50 Piercing 22 | . . . . . . . . . 15 7 . . . . . . . . . . . Sneak Attacks 21 | . . 1 . 2 6 5 . . . . . . . 1 . . . . . . 6 Combat Hostiles . | . . . . . . . . . . . . . . . . . . . . . . Follow-up Attacks . | . . . . . . . . . . . . . . . . . . . . . . Damage Inflicted 26914 | . . . 406 1346 1118 7089 248 554 . 1471 1360 . 895 287 . . 747 53 587 2997 7756 Guns 5704 | . . . 266 439 155 1657 . . . 149 34 . 323 191 . . 103 53 205 365 1764 Cannons 3012 | . . . 140 570 125 41 . . . 89 112 . . . . . . . . 1335 600 Explosions 10498 | . . . . . . 3252 . 554 . 1063 445 . 474 . . . 644 . . 1062 3004 Melee 7696 | . . . . 333 838 2139 248 . . 170 769 . 98 96 . . . . 382 235 2388 Ramming 4 | . . . . 4 . . . . . . . . . . . . . . . . . Kinetic 2103 | . . . 177 266 . . . . . 89 112 . 323 191 . . . . . 634 311 Thermal 7454 | . . . 140 743 280 2283 . . . 149 34 . . . . . 103 53 205 1066 2398 Explosive 9157 | . . . . . . 2626 . 554 . 980 445 . 474 . . . 644 . . 775 2659 Electromagnetic 500 | . . . 89 . . 41 . . . 83 . . . . . . . . . 287 . Impact 2763 | . . . . 333 838 629 . . . . 769 . 98 96 . . . . . . . Slashing 4763 | . . . . . . 1510 248 . . . . . . . . . . . 382 235 2388 Piercing 170 | . . . . . . . . . . 170 . . . . . . . . . . . Highest Corruption 15 | . . . . . . 3 2 . . . . . . . . . . . 4 15 9 Average Corruption 5 | . . . . . . 1 1 . . . . . . . . . . . 1 11 5 Corruption Purged 11 | . . . . . . 5 2 . . . . . . . . . . . . 4 . Corruption Blocked . | . . . . . . . . . . . . . . . . . . . . . . Effects 103 | . . . . . . 20 . . . . . . . . . . . . 2 52 29 Message Errors 26 | . . . . . . 6 . . . . . . . . . . . . 2 13 5 Matter Fused 27 | . . . . . . 6 . . . . . . . . . . . . . 13 8 Heat Flow Errors 11 | . . . . . . 1 . . . . . . . . . . . . . 5 5 Energy Discharges 12 | . . . . . . 1 . . . . . . . . . . . . . 10 1 Parts Rejected 2 | . . . . . . . . . . . . . . . . . . . . . 2 Parts Fused 2 | . . . . . . 1 . . . . . . . . . . . . . 1 . Data Loss (minor) 14 | . . . . . . 3 . . . . . . . . . . . . . 6 5 Data Loss (major) 1 | . . . . . . 1 . . . . . . . . . . . . . . . Misfires 6 | . . . . . . 1 . . . . . . . . . . . . . 3 2 Alerts 2 | . . . . . . . . . . . . . . . . . . . . 1 1 Overload Shots . | . . . . . . . . . . . . . . . . . . . . . . Overflow Damage 2325 | . . . . 151 411 600 . 16 . 33 240 . 39 96 . . 21 . . 78 640 Projectiles 78 | . . . . 13 . 7 . . . 3 . . . . . . . . . 10 45 Explosions 397 | . . . . . . 106 . 16 . 30 . . . . . . 21 . . 68 156 Melee 1850 | . . . . 138 411 487 . . . . 240 . 39 96 . . . . . . 439 Knockbacks 18 | . . . . . 1 6 . . . 2 3 . . 1 . . . . . 5 . Impact 10 | . . . . . 1 5 . . . . 3 . . 1 . . . . . . . Kinetic 7 | . . . . . . . . . . 2 . . . . . . . . . 5 . Secondary 1 | . . . . . . 1 . . . . . . . . . . . . . . . Self-Inflicted Damage 451 | . . . . . . 262 . . . . . . . . . . 43 . . 18 128 Shots 11 | . . . . . . 6 . . . . . . . . . . 1 . . 1 3 Rammed . | . . . . . . . . . . . . . . . . . . . . . . Targets Rammed 2 | . . . 1 1 . . . . . . . . . . . . . . . . . Kicked 2 | . . . 1 1 . . . . . . . . . . . . . . . . . Crushed . | . . . . . . . . . . . . . . . . . . . . . . Highest Temperature 2007 | . . . 90 369 318 402 . 106 . 108 48 . . . . . 166 121 525 450 2007 Average Temperature 200 | . . . 24 85 121 100 . 60 . 37 29 . . . . . 85 63 279 132 401 Received Heat Transfer 2337 | . . . 135 246 198 327 . 117 . 225 147 . . 27 . . 12 18 58 255 572 Effects 89 | . . . . 2 3 2 . . . . . . . . . . . . 7 8 67 Shutdowns 14 | . . . . . . 1 . . . . . . . . . . . . 2 . 11 Energy Bleed 10 | . . . . 1 . . . . . . . . . . . . . . . . 9 Interference 19 | . . . . . 3 . . . . . . . . . . . . . . 7 9 Matter Decay 7 | . . . . . . . . . . . . . . . . . . . . . 7 Short Circuit 8 | . . . . 1 . 1 . . . . . . . . . . . . 1 . 5 Damage (minor) 8 | . . . . . . . . . . . . . . . . . . . . 1 7 Damage (major) 17 | . . . . . . . . . . . . . . . . . . . 4 . 13 Damage (core) 6 | . . . . . . . . . . . . . . . . . . . . . 6 Siege Activations . | . . . . . . . . . . . . . . . . . . . . . . Robots Corrupted . | . . . . . . . . . . . . . . . . . . . . . . Combat Hostiles . | . . . . . . . . . . . . . . . . . . . . . . Parts Fried 21 | . . . 1 . 5 11 . . . . 2 . . 2 . . . . . . . Impact Corruptions 51 | . . . . 7 17 15 . . . . 8 . 1 3 . . . . . . . Robots Melted 4 | . . . . . 1 2 . . . . . . . . . . . . . . 1 Combat Hostiles 4 | . . . . . 1 2 . . . . . . . . . . . . . . 1 Parts Melted 42 | . . . . 6 6 16 . . . . . . . . . . . . . 3 11 Heat Transferred 12591 | . . . 296 1591 703 3982 . . . 325 75 . . . . . 148 74 223 1716 3458 Parts Sabotaged 3 | . . . . . . . . . . . . . . . . . . . . 3 . Parts Stolen . | . . . . . . . . . . . . . . . . . . . . . . Parts Stripped . | . . . . . . . . . . . . . . . . . . . . . . Power Chain Reactions . | . . . . . . . . . . . . . . . . . . . . . . Alert | -11 -10 -10 -9 -9 -8 -7 -7 -7 -6 -6 -6 -6 -5 -5 -5 -5 -5 -5 -5 -4 -4 ------- Run | Yrd Mat Min Mat Sto Mat Fac Low Low Fac Low Low Zio Pro Fac Was Fac Upp Upp War Pro Fac Peak Influence 1307 | . 6 1 86 365 621 414 . . 67 . . . . 820 96 109 . . . . 1307 Initial 911 | . . 1 . . 62 172 . . 44 . . . . 764 96 59 . . . . 911 Average 283 | . 5 1 33 217 396 139 . . 54 . . . . 671 96 66 . . . . 895 Maximum Alert Level 4 | . . . . 1 2 2 . . . . . . . 3 . . . . . . 4 Low Security (%) 57 | 100 100 100 100 48 8 72 . . 100 . . . . . 100 100 . . . . . Level 1 19 | . . . . 51 33 25 . . . . . . . . . . . . . . . Level 2 8 | . . . . . 58 1 . . . . . . . 49 . . . . . . 13 Level 3 14 | . . . . . . . . . . . . . . 49 . . . . . . 82 Level 4 . | . . . . . . . . . . . . . . . . . . . . . 4 Level 5 . | . . . . . . . . . . . . . . . . . . . . . . High Security . | . . . . . . . . . . . . . . . . . . . . . . Max Security . | . . . . . . . . . . . . . . . . . . . . . . Squads Dispatched 42 | . 1 . 1 1 5 25 . . . . . . . 1 . . . . . 1 7 Investigation 7 | . 1 . . . . 4 . . . . . . . 1 . . . . . . 1 Extermination 10 | . . . . . . 8 . . . . . . . . . . . . . . 2 Reinforcement 5 | . . . 1 1 2 1 . . . . . . . . . . . . . . . Assault 3 | . . . . . . 1 . . . . . . . . . . . . . 1 1 Garrison 17 | . . . . . 3 11 . . . . . . . . . . . . . . 3 Intercept . | . . . . . . . . . . . . . . . . . . . . . . Searches Triggered 4 | . . . . . . . . . . . . . . 2 . . . . . . 2 Construction Impeded . | . . . . . . . . . . . . . . . . . . . . . . Haulers Reinforced . | . . . . . . . . . . . . . . . . . . . . . . Active Scanning Responses . | . . . . . . . . . . . . . . . . . . . . . . Cargo Convoy Interrupts . | . . . . . . . . . . . . . . . . . . . . . . Stealth | -11 -10 -10 -9 -9 -8 -7 -7 -7 -6 -6 -6 -6 -5 -5 -5 -5 -5 -5 -5 -4 -4 --------- Run | Yrd Mat Min Mat Sto Mat Fac Low Low Fac Low Low Zio Pro Fac Was Fac Upp Upp War Pro Fac Distress Signals 16 | . . . . 3 5 3 . . . . . . 2 . . . . . . . 3 Communications Jammed . | . . . . . . . . . . . . . . . . . . . . . . Distress Signals . | . . . . . . . . . . . . . . . . . . . . . . Times Spotted 270 | . . . 5 20 32 59 1 4 1 12 12 . 17 2 . 2 4 1 29 25 44 Peak Tracking Total 17 | . 1 . 3 7 5 4 1 4 1 3 7 . 6 1 . 2 3 1 17 7 8 Tactical Retreats 14 | . . . . . 3 6 . . . 4 . . . . . . . . 1 . . Traps | -11 -10 -10 -9 -9 -8 -7 -7 -7 -6 -6 -6 -6 -5 -5 -5 -5 -5 -5 -5 -4 -4 ------- Run | Yrd Mat Min Mat Sto Mat Fac Low Low Fac Low Low Zio Pro Fac Was Fac Upp Upp War Pro Fac Traps Triggered 9 | . 1 . 1 . . 1 . . . . . . . 2 . 1 . . . . 3 Indirectly . | . . . . . . . . . . . . . . . . . . . . . . Trap Hack Attempts . | . . . . . . . . . . . . . . . . . . . . . . Triggered . | . . . . . . . . . . . . . . . . . . . . . . Disarmed . | . . . . . . . . . . . . . . . . . . . . . . Reprogrammed . | . . . . . . . . . . . . . . . . . . . . . . Reused . | . . . . . . . . . . . . . . . . . . . . . . Traps Extracted . | . . . . . . . . . . . . . . . . . . . . . . Installed . | . . . . . . . . . . . . . . . . . . . . . . Triggered 13 | . . . . . . . . . . . . . . . . . . . 13 . . Most Traps Carried 4 | . . . . . . . . . . . . . . . . . . . . 4 . Machines | -11 -10 -10 -9 -9 -8 -7 -7 -7 -6 -6 -6 -6 -5 -5 -5 -5 -5 -5 -5 -4 -4 ---------- Run | Yrd Mat Min Mat Sto Mat Fac Low Low Fac Low Low Zio Pro Fac Was Fac Upp Upp War Pro Fac Machines Disabled 30 | . . . . 4 1 9 . . . . 2 . . . . . 1 . . . 13 Max in Single Turn 4 | . . . . 1 . 3 . . . . 1 . . . . . . . . . 4 Garrison Access 1 | . . . . . . 1 . . . . . . . . . . . . . . . Machines Repaired . | . . . . . . . . . . . . . . . . . . . . . . Machines Dismantled . | . . . . . . . . . . . . . . . . . . . . . . Machines Sabotaged . | . . . . . . . . . . . . . . . . . . . . . . Overloaded Fab Kills . | . . . . . . . . . . . . . . . . . . . . . . Hacking | -11 -10 -10 -9 -9 -8 -7 -7 -7 -6 -6 -6 -6 -5 -5 -5 -5 -5 -5 -5 -4 -4 --------- Run | Yrd Mat Min Mat Sto Mat Fac Low Low Fac Low Low Zio Pro Fac Was Fac Upp Upp War Pro Fac Machines Accessed 29 | . 2 . 4 5 2 8 . . 1 1 2 . . 1 . . 1 . 2 . . Terminals 19 | . 2 . 3 5 2 4 . . 1 1 1 . . . . . . . . . . Fabricators 1 | . . . . . . 1 . . . . . . . . . . . . . . . Repair Stations 3 | . . . 1 . . 2 . . . . . . . . . . . . . . . Recycling Units 1 | . . . . . . . . . . . . . . 1 . . . . . . . Scanalyzers 1 | . . . . . . 1 . . . . . . . . . . . . . . . Garrison Access . | . . . . . . . . . . . . . . . . . . . . . . Total Hacks 53 | . 3 . 7 7 5 17 . . 1 1 3 . . 2 . . 1 . 6 . . Successful 37 | . 3 . 4 4 4 10 . . . 1 3 . . 1 . . 1 . 6 . . Failed 16 | . . . 3 3 1 7 . . 1 . . . . 1 . . . . . . . Catastrophic 3 | . . . 1 . . 2 . . . . . . . . . . . . . . . Database Lockouts . | . . . . . . . . . . . . . . . . . . . . . . Manual 27 | . 1 . . 6 2 6 . . . 1 . . . 5 . 3 . . 2 . 1 Terminals 28 | . 3 . 4 7 5 5 . . 1 1 2 . . . . . . . . . . Fabricators 2 | . . . . . . 2 . . . . . . . . . . . . . . . Repair Stations 10 | . . . 3 . . 7 . . . . . . . . . . . . . . . Recycling Units 2 | . . . . . . . . . . . . . . 2 . . . . . . . Scanalyzers 3 | . . . . . . 3 . . . . . . . . . . . . . . . Garrison Access . | . . . . . . . . . . . . . . . . . . . . . . Terminal Hacks 24 | . 3 . 2 4 4 . . . . 1 3 . . . . . 1 . 6 . . Record 4 | . . . . . 1 . . . . 1 2 . . . . . . . . . . Robot Analysis 1 | . 1 . . . . . . . . . . . . . . . . . . . . Prototype ID Bank 6 | . 1 . . . . . . . . . . . . . . . . . 5 . . Open Door 4 | . . . . 1 . . . . . . 1 . . . . . 1 . 1 . . Level Access Points 1 | . . . . . 1 . . . . . . . . . . . . . . . . Branch Access Points 1 | . . . . . 1 . . . . . . . . . . . . . . . . Emergency Access Points 1 | . 1 . . . . . . . . . . . . . . . . . . . . Unreport Threat 1 | . . . 1 . . . . . . . . . . . . . . . . . . Zone Layout 5 | . . . 1 3 1 . . . . . . . . . . . . . . . . Fabricator Hacks 2 | . . . . . . 2 . . . . . . . . . . . . . . . Load Schematic 1 | . . . . . . 1 . . . . . . . . . . . . . . . Build 1 | . . . . . . 1 . . . . . . . . . . . . . . . Repair Station Hacks 7 | . . . 2 . . 5 . . . . . . . . . . . . . . . Scan Component 4 | . . . 1 . . 3 . . . . . . . . . . . . . . . Repair 3 | . . . 1 . . 2 . . . . . . . . . . . . . . . Recycling Unit Hacks 1 | . . . . . . . . . . . . . . 1 . . . . . . . Report Inventory 1 | . . . . . . . . . . . . . . 1 . . . . . . . Scanalyzer 3 | . . . . . . 3 . . . . . . . . . . . . . . . Insert Component 1 | . . . . . . 1 . . . . . . . . . . . . . . . Analyze 2 | . . . . . . 2 . . . . . . . . . . . . . . . Garrison Access Hacks . | . . . . . . . . . . . . . . . . . . . . . . Unauthorized Hacks . | . . . . . . . . . . . . . . . . . . . . . . Terminals . | . . . . . . . . . . . . . . . . . . . . . . Fabricators . | . . . . . . . . . . . . . . . . . . . . . . Repair Stations . | . . . . . . . . . . . . . . . . . . . . . . Recycling Units . | . . . . . . . . . . . . . . . . . . . . . . Scanalyzers . | . . . . . . . . . . . . . . . . . . . . . . Garrison Access . | . . . . . . . . . . . . . . . . . . . . . . Data Cores Recovered . | . . . . . . . . . . . . . . . . . . . . . . Used . | . . . . . . . . . . . . . . . . . . . . . . Hacking Detections 17 | . 1 . 2 2 1 8 . . . . 1 . . 2 . . . . . . . Full Trace Events 4 | . . . . . . 4 . . . . . . . . . . . . . . . Feedback Events . | . . . . . . . . . . . . . . . . . . . . . . Feedback Blocked . | . . . . . . . . . . . . . . . . . . . . . . Robot Schematics Acquired . | . . . . . . . . . . . . . . . . . . . . . . Robots Built . | . . . . . . . . . . . . . . . . . . . . . . Authchips . | . . . . . . . . . . . . . . . . . . . . . . Time . | . . . . . . . . . . . . . . . . . . . . . . Total Robot Build Rating . | . . . . . . . . . . . . . . . . . . . . . . Part Schematics Acquired 1 | . . . . . . 1 . . . . . . . . . . . . . . . Parts Built 2 | . . . . . . 2 . . . . . . . . . . . . . . . Authchips . | . . . . . . . . . . . . . . . . . . . . . . Time 84 | . . . . . . 84 . . . . . . . . . . . . . . . Total Part Build Rating 8 | . . . . . . 8 . . . . . . . . . . . . . . . Parts Repaired 3 | . . . 1 . . 2 . . . . . . . . . . . . . . . Time 114 | . . . 26 . . 88 . . . . . . . . . . . . . . . Parts Recycled . | . . . . . . . . . . . . . . . . . . . . . . Recycled Matter . | . . . . . . . . . . . . . . . . . . . . . . Retrieved Matter . | . . . . . . . . . . . . . . . . . . . . . . Retrieved Components . | . . . . . . . . . . . . . . . . . . . . . . Parts Scanalyzed 1 | . . . . . . 1 . . . . . . . . . . . . . . . Part Schematics Acquired 1 | . . . . . . 1 . . . . . . . . . . . . . . . Parts Damaged . | . . . . . . . . . . . . . . . . . . . . . . Bothacking | -11 -10 -10 -9 -9 -8 -7 -7 -7 -6 -6 -6 -6 -5 -5 -5 -5 -5 -5 -5 -4 -4 ------------ Run | Yrd Mat Min Mat Sto Mat Fac Low Low Fac Low Low Zio Pro Fac Was Fac Upp Upp War Pro Fac Used RIF Installer . | . . . . . . . . . . . . . . . . . . . . . . Robots Hacked 2 | . . 1 1 . . . . . . . . . . . . . . . . . . Non-combat 1 | . . 1 . . . . . . . . . . . . . . . . . . . Combat 1 | . . . 1 . . . . . . . . . . . . . . . . . . Robot Hacks Applied 2 | . . 1 1 . . . . . . . . . . . . . . . . . . parse_system 2 | . . 1 1 . . . . . . . . . . . . . . . . . . Relay Couplers Released 3 | . . . . . . 3 . . . . . . . . . . . . . . . Machine Destruction 3 | . . . . . . 3 . . . . . . . . . . . . . . . Fabnet Peak Effective % . | . . . . . . . . . . . . . . . . . . . . . . Robots Rewired 7 | . . . . . . . . . . . . . . . . . 1 . 5 1 . Allies Hacked 1 | . . . . . . . . . . . . . 1 . . . . . . . . Hacks Repelled . | . . . . . . . . . . . . . . . . . . . . . . Allies | -11 -10 -10 -9 -9 -8 -7 -7 -7 -6 -6 -6 -6 -5 -5 -5 -5 -5 -5 -5 -4 -4 -------- Run | Yrd Mat Min Mat Sto Mat Fac Low Low Fac Low Low Zio Pro Fac Was Fac Upp Upp War Pro Fac Total Allies 47 | . . . . 11 . . . . . . . 9 . . 20 . 1 . 5 1 . Largest Group 20 | . . . . 11 10 . . . . . . 9 9 . 20 20 16 13 18 1 1 Highest-Rated Group 710 | . . . . 188 88 . . . . . . 275 275 . 702 702 549 471 710 30 30 Highest-Rated Ally 100 | . . . . 100 16 . . . . . . 39 39 . 46 46 46 46 65 30 30 Zionite Dispatches 1 | . . . . . . . . . . . . . . 1 . . . . . . . Recon 1 | . . . . . . . . . . . . . . 1 . . . . . . . Total Orders . | . . . . . . . . . . . . . . . . . . . . . . Ally Attacks 322 | . . . . . 111 . . . . . . . 38 . . 29 65 4 68 2 5 Total Damage 6261 | . . . . . 1079 . . . . . . . 671 . . 605 1376 93 2100 100 237 Kills 43 | . . . . . 16 . . . . . . . 8 . . 3 8 1 4 1 2 Allies Corrupted 5 | . . . . . . . . . . . . . . . . 2 . . 3 . . Allies Melted . | . . . . . . . . . . . . . . . . . . . . . . Intel | -11 -10 -10 -9 -9 -8 -7 -7 -7 -6 -6 -6 -6 -5 -5 -5 -5 -5 -5 -5 -4 -4 ------- Run | Yrd Mat Min Mat Sto Mat Fac Low Low Fac Low Low Zio Pro Fac Was Fac Upp Upp War Pro Fac Robot Analysis Total 1 | . 1 . . . . . . . . . . . . . . . . . . . . Derelict Logs Recovered 14 | . . 1 . . . . 3 . . 1 2 2 2 . . . . 2 . 1 . Drone Launches . | . . . . . . . . . . . . . . . . . . . . . . Drone Recoveries . | . . . . . . . . . . . . . . . . . . . . . . Exploration | -11 -10 -10 -9 -9 -8 -7 -7 -7 -6 -6 -6 -6 -5 -5 -5 -5 -5 -5 -5 -4 -4 ------------- Run | Yrd Mat Min Mat Sto Mat Fac Low Low Fac Low Low Zio Pro Fac Was Fac Upp Upp War Pro Fac Turns Passed 17883 | 56 188 121 471 1128 536 4514 819 119 330 953 866 1015 492 603 389 314 497 453 1267 1341 1411 Spaces Moved 11312 | 39 123 89 185 707 294 2673 684 93 238 630 629 813 374 326 308 239 389 265 806 802 606 Core 6 | 5 . . . . . . . . . . . . . . . . . . . . 1 Treads . | . . . . . . . . . . . . . . . . . . . . . . Legs 2043 | 34 123 89 185 707 250 . . . . . . . . . . . . . . 85 570 Wheels 9263 | . . . . . 44 2673 684 93 238 630 629 813 374 326 308 239 389 265 806 717 35 Hover . | . . . . . . . . . . . . . . . . . . . . . . Flight . | . . . . . . . . . . . . . . . . . . . . . . Fastest Speed 50 | 50 120 120 120 120 100 100 115 100 115 115 115 115 115 115 115 108 108 108 105 120 113 Average Speed 116 | 111 120 120 120 120 118 107 115 112 115 117 115 115 115 115 115 111 108 108 108 135 151 Slowest Speed 900 | 120 120 120 120 120 122 115 115 115 115 145 115 115 115 115 115 115 108 108 120 330 900 Overloaded Moves . | . . . . . . . . . . . . . . . . . . . . . . Propulsion Burnouts . | . . . . . . . . . . . . . . . . . . . . . . Robots Hopped . | . . . . . . . . . . . . . . . . . . . . . . Cave-ins Triggered . | . . . . . . . . . . . . . . . . . . . . . . Exploration Rate (%) 45 | 3 25 17 17 78 33 50 80 15 8 60 63 85 67 6 95 7 66 50 69 88 17 Regions Visited 21 Branch Regions 12 Pre-discovered Areas 3 | . . . . 1 . . 1 . . . . . . . . . . 1 . . . Known Exits Taken 5 | . . . . 1 1 . . . . . . . 1 . . 1 . . . 1 . Unknown Exits Taken 14 | 1 1 1 1 . . 1 1 1 1 1 1 1 . . . . 1 1 1 . . Scrap Searched 15 | . . 1 . . . . 2 1 . 1 1 . 1 . . . 3 2 . 3 . Spaces Dug 82 | . . . . . 2 14 1 . 8 2 . . . 12 . . . . . . 43 Terrain Destroyed 744 | . . . . . 2 333 1 19 8 24 41 . 25 12 . . 36 . 1 52 190 Melee 38 | . . . . . 2 2 1 . 8 1 . . . 12 . . . . . . 12 Projectile 40 | . . . . . . . . . . 4 1 . . . . . . . 1 21 13 AOE 666 | . . . . . . 331 . 19 . 19 40 . 25 . . . 36 . . 31 165 Terrain Rammed . | . . . . . . . . . . . . . . . . . . . . . . Walls Destroyed . | . . . . . . . . . . . . . . . . . . . . . . Machines Disabled . | . . . . . . . . . . . . . . . . . . . . . . Actions | -11 -10 -10 -9 -9 -8 -7 -7 -7 -6 -6 -6 -6 -5 -5 -5 -5 -5 -5 -5 -4 -4 --------- Run | Yrd Mat Min Mat Sto Mat Fac Low Low Fac Low Low Zio Pro Fac Was Fac Upp Upp War Pro Fac Total 15121 | 48 163 102 388 885 438 4081 704 102 270 781 726 895 407 527 349 289 457 430 1179 977 923 Wait 2695 | 2 34 5 165 65 72 1129 7 2 6 116 46 72 8 166 9 30 40 158 315 90 158 Move 11292 | 38 122 88 184 706 293 2672 683 92 237 629 628 812 373 326 307 238 388 264 805 801 606 Hop . | . . . . . . . . . . . . . . . . . . . . . . Pick Up 120 | 2 6 1 2 10 11 29 1 . 7 1 2 2 1 4 9 5 4 1 4 11 7 Fast Attach 92 | 6 1 1 3 4 5 20 1 1 . . 5 2 1 2 6 1 2 . . 7 24 Attach 50 | . . . . 1 2 12 . 1 3 3 2 1 1 2 . . 1 . . 10 11 Detach 24 | . . . . 2 1 7 . 1 . . 3 1 . 2 . . . . . 2 5 Swap 104 | . . 1 5 14 4 26 4 1 2 5 7 . 3 2 1 1 4 4 6 5 9 Drop 150 | . . 2 4 17 19 46 2 . . . 3 5 . 5 15 6 5 2 5 7 7 Fire 317 | . . . 23 46 11 87 . 4 . 20 9 . 18 5 . . 5 1 5 37 46 Melee 218 | . . 1 1 16 20 53 6 . 15 7 21 . 2 13 . . . . 9 4 50 Ram . | . . . . . . . . . . . . . . . . . . . . . . Kick 2 | . . . 1 1 . . . . . . . . . . . . . . . . . Crush . | . . . . . . . . . . . . . . . . . . . . . . Escape Stasis 8 | . . . . . . . . . . . . . . . . 8 . . . . . Rewire 49 | . . 3 . 3 . . . . . . . . . . 2 . 8 . 30 3 . Trap . | . . . . . . . . . . . . . . . . . . . . . . Miscellaneous . | . . . . . . . . . . . . . . . . . . . . . . Route ------- -11/Scrapyard -10/Materials -10/Mines -9/Materials (discovered 2 exits: Mat / *Sto) -9/Storage -8/Materials (discovered 3 exits: *Fac x3) -7/Factory -7/Lower Caves -7/Lower Caves -6/Factory -6/Lower Caves -6/Lower Caves -6/Zion -5/Proximity Caves -5/Factory (discovered 3 exits: Fac / Upp x2) -5/Waste -5/Factory -5/Upper Caves -5/Upper Caves -5/Warlord -4/Proximity Caves -4/Factory (discovered 2 exits: Res / [*Upp]) History --------- Turn | Location | Event 3 | -11/Scrapyard | Discovered new exit (range 16) 57 | -11/Scrapyard | Entered Materials 181 | -10/Materials | Discovered new exit (range 16) 245 | -10/Materials | Entered Mines 303 | -10/Mines | Build established: Mutant 337 | -10/Mines | Learned location of 1 exit from Materials 356 | -10/Mines | Discovered new exit (range 10) 366 | -10/Mines | Entered Materials 366 | -9/Materials | Evolved 2 slots: Propulsion x2 367 | -9/Materials | Identified exit to Materials 387 | -9/Materials | Discovered new exit (range 16) 826 | -9/Materials | Repaired Aluminum Leg 837 | -9/Materials | Entered Storage 1804 | -9/Storage | Assisted by bots powering up and referring to "LRC-V3" 1877 | -9/Storage | Learned location of Armory (-4) 1905 | -9/Storage | Met 01-MTF 1933 | -9/Storage | Discovered exit to Materials (range 15) 1965 | -9/Storage | Entered Materials 1965 | -8/Materials | Accompanied by 11 allies (01-MTF) 1965 | -8/Materials | Evolved 2 slots: Utility x2 1970 | -8/Materials | 01-MTF left 2016 | -8/Materials | Identified exit to Factory 2062 | -8/Materials | Garrison activated, responded to threat 2070 | -8/Materials | Lost 3 allies 2093 | -8/Materials | Build established: Commander-Mutant 2170 | -8/Materials | Lost 3 allies 2432 | -8/Materials | Build established: Mutant 2501 | -8/Materials | Entered Factory 2501 | -7/Factory | Evolved 2 slots: Utility x1, Weapon x1 3458 | -7/Factory | Build established: Skirmisher 3718 | -7/Factory | Garrison activated, responded to threat 4443 | -7/Factory | Build established: Mutant 5090 | -7/Factory | Fabricated Arm. Huge Wheel? 5875 | -7/Factory | Garrison activated, responded to threat 6118 | -7/Factory | Repaired Hrd. Heavy Armor Plating 6165 | -7/Factory | Repaired Gatling Laser 6700 | -7/Factory | Garrison activated, responded to threat 6986 | -7/Factory | Discovered new exit (range 16) 7015 | -7/Factory | Entered Lower Caves 7050 | -7/Lower Caves | Encountered a Warlord checkpoint 7240 | -7/Lower Caves | Attacked by a delusional Derelict stockpiling Unaware 7460 | -7/Lower Caves | Learned Factory non-interactive machine intel 7558 | -7/Lower Caves | Learned Factory interactive machine intel 7764 | -7/Lower Caves | Discovered new exit (range 5) 7834 | -7/Lower Caves | Entered another Lower Caves area 7880 | -7/Lower Caves | Discovered new exit (range 14) 7953 | -7/Lower Caves | Entered Factory 7953 | -6/Factory | Evolved 2 slots: Utility x2 7954 | -6/Factory | Loaded intel: 211 non-interactive machine locations 7955 | -6/Factory | Loaded intel: 52 interactive machine locations 8167 | -6/Factory | Discovered new exit (range 7) 8283 | -6/Factory | Entered Lower Caves 8358 | -6/Lower Caves | Attracted the attention of an 0b10 checkpoint 8746 | -6/Lower Caves | Learned Factory machine intel 8772 | -6/Lower Caves | Spotted B-75 Beast 9125 | -6/Lower Caves | Destroyed B-75 Beast 9176 | -6/Lower Caves | Discovered new exit (range 14) 9197 | -6/Lower Caves | Encountered a Warlord checkpoint 9236 | -6/Lower Caves | Entered another Lower Caves area 9639 | -6/Lower Caves | Learned Factory terminal intel 9661 | -6/Lower Caves | Attracted the attention of an 0b10 base 9738 | -6/Lower Caves | Destroyed 7 combat bots 9857 | -6/Lower Caves | Learned location of 1 exit from Proximity Caves 10101 | -6/Lower Caves | Discovered new exit (range 2) 10102 | -6/Lower Caves | Entered Zion 10138 | -6/Zion | Discovered new exit (range 13) 10216 | -6/Zion | Gained Derelict followers 10535 | -6/Zion | Imprinted 10537 | -6/Zion | Declared Zion's savior 10716 | -6/Zion | Found Prototype Device 10716 | -6/Zion | Identified Mobile Refinery Mk. CCLXVII 11117 | -6/Zion | Entered Proximity Caves 11117 | -5/Proximity Caves | Accompanied by 9 allies 11118 | -5/Proximity Caves | Identified exit to Factory 11240 | -5/Proximity Caves | Lost 3 allies 11246 | -5/Proximity Caves | Spotter reported a threat 11266 | -5/Proximity Caves | Attracted the attention of an 0b10 checkpoint 11267 | -5/Proximity Caves | Spotter reported a threat 11319 | -5/Proximity Caves | Spotter reported a threat 11327 | -5/Proximity Caves | Ambushed by research squad 11365 | -5/Proximity Caves | Lost 5 allies 11372 | -5/Proximity Caves | Spotter reported a threat 11567 | -5/Proximity Caves | Learned location of 1 exit from Factory 11588 | -5/Proximity Caves | Spotter reported a threat 11597 | -5/Proximity Caves | Learned Factory stockpile data 11609 | -5/Proximity Caves | Entered Factory 11609 | -5/Factory | Evolved 2 slots: Power x1, Propulsion x1 11610 | -5/Factory | Identified exit to Upper Caves 11611 | -5/Factory | Identified exit to Factory 11613 | -5/Factory | Loaded intel: 295 machine locations 11614 | -5/Factory | Loaded intel: 28 terminal locations 11760 | -5/Factory | Zion Recon squad teleported in 11909 | -5/Factory | Search patrols dispatched 12209 | -5/Factory | Search patrols dispatched 12212 | -5/Factory | Sucked down chute 12212 | -5/Factory | Entered Waste 12213 | -5/Waste | Joined by Warlord forces that had cleared the area 12220 | -5/Waste | Found Prototype Slashing Weapon 12220 | -5/Waste | Identified Nanosword 12378 | -5/Waste | Discovered new exit (range 13) 12601 | -5/Waste | Entered Factory 12601 | -5/Factory | Accompanied by 20 allies 12631 | -5/Factory | Build established: Scavenger-Mutant 12720 | -5/Factory | Discovered exit to Upper Caves (range 20) 12902 | -5/Factory | Lost 4 allies 12915 | -5/Factory | Entered Upper Caves 12915 | -5/Upper Caves | Accompanied by 16 allies 13153 | -5/Upper Caves | Spotted B-75 Beast 13163 | -5/Upper Caves | Allies destroyed B-75 Beast 13192 | -5/Upper Caves | Lost 3 allies 13264 | -5/Upper Caves | Build established: Scavenger-Assassin 13315 | -5/Upper Caves | Discovered new exit (range 19) 13412 | -5/Upper Caves | Entered another Upper Caves area 13412 | -5/Upper Caves | Accompanied by 13 allies 13582 | -5/Upper Caves | Attracted the attention of an 0b10 checkpoint 13624 | -5/Upper Caves | Learned location of 1 exit from Factory 13705 | -5/Upper Caves | Encountered a Warlord checkpoint 13715 | -5/Upper Caves | Discovered new exit (range 9) 13865 | -5/Upper Caves | Entered Warlord 13865 | -5/Warlord | Accompanied by 13 allies 14053 | -5/Warlord | Opened side exit 14074 | -5/Warlord | Discovered new exit (range 10) 14247 | -5/Warlord | Received a Watcher feed algorithm from an ecstatic Tinkerer 14408 | -5/Warlord | Rebuked by Warlord 14416 | -5/Warlord | Warlord's base attacked by MAIN.C 14766 | -5/Warlord | Warlord forces counterattacked 14985 | -5/Warlord | Found Prototype Processor 14988 | -5/Warlord | Identified Exp. Core Analyzer 14992 | -5/Warlord | Found Exp. Core Analyzer 15002 | -5/Warlord | Found Prototype Device 15003 | -5/Warlord | Identified Adv. Kinecellerator 15016 | -5/Warlord | Spotted Striker 15016 | -5/Warlord | Spotted Striker 15071 | -5/Warlord | P-70 Sage assimilated allied ET-8NA(m) 15077 | -5/Warlord | Destroyed Striker 15091 | -5/Warlord | Warlord base infiltrated, sounded retreat 15094 | -5/Warlord | Lost 17 allies 15116 | -5/Warlord | Spotted Executioner 15132 | -5/Warlord | Entered Proximity Caves 15134 | -4/Proximity Caves | Spotter reported a threat 15135 | -4/Proximity Caves | Spotter reported a threat 15159 | -4/Proximity Caves | Lost 4 parts (1n3u) 15187 | -4/Proximity Caves | Spotter reported a threat 15257 | -4/Proximity Caves | Spotter reported a threat 15270 | -4/Proximity Caves | Spotter reported a threat 15276 | -4/Proximity Caves | Build established: Scavenger-Mutant 15295 | -4/Proximity Caves | System corruption reached 10% 15333 | -4/Proximity Caves | Spotted B-86 Titan 15799 | -4/Proximity Caves | Spotter reported a threat 16266 | -4/Proximity Caves | Attracted the attention of an 0b10 outpost 16343 | -4/Proximity Caves | Lost 4 parts (1n2u1w) 16345 | -4/Proximity Caves | Destroyed 8 combat bots 16446 | -4/Proximity Caves | Learned Research terminal intel 16463 | -4/Proximity Caves | Discovered exit to Factory (range 7) 16470 | -4/Proximity Caves | Attracted the attention of an 0b10 checkpoint 16473 | -4/Proximity Caves | Entered Factory 16473 | -4/Factory | Accompanied by 1 ally 16473 | -4/Factory | Evolved 2 slots: Propulsion x1, Weapon x1 16474 | -4/Factory | Identified exit to Research 16723 | -4/Factory | Search patrols dispatched 16970 | -4/Factory | Build established: Scavenger-Tank 17013 | -4/Factory | Search patrols dispatched 17160 | -4/Factory | Destroyed 7 combat bots 17172 | -4/Factory | Lost 3 parts (2n1w) 17344 | -4/Factory | Core integrity fell below 50% 17548 | -4/Factory | Garrison activated, responded to threat 17723 | -4/Factory | First assault squad dispatched 17846 | -4/Factory | Discovered new exit (range 14) 17869 | -4/Factory | Core integrity fell below 20% 17871 | -4/Factory | Destroyed 7 combat bots 17885 | -4/Factory | Core destroyed Last Messages --------------- 17873_ Neutrino Core destroyed. 17874_ Rnf. Fission Core destroyed. 17875_ Overheating: Nanosword damaged (-19). 17876_ Adv. Plasma Cannon destroyed. 17878_ U-05 Engineer builds a Wall. 17879_ The unstable cave ceiling collapses. 17880_ Critical hit (Burn: +50). 17881_ Overheating: Energy bleed (-10). 17882_ Myomer Leg broken. 17882_ Overheating: Short circuit. 17882_ System corrupted: Matter fused (-10). 17882_ The unstable cave ceiling collapses. 17884_ Overheating: Adv. Visual Processing Unit damaged (-1). 17884_ Overheating: Adv. Cryofiber Web damaged (-12). 17884_ Overheating: Hcp. Storage Unit damaged (-79). 17885_ Overheating: Core damaged (-149). [Achievement: 20k Club] Map ----- +----------------------------------------------------+ | ?????????????????????##???????????????? | | ?????????????????????# ?????????????? | | ?????????????????????# ############ | | ???????????????????????? | | ?????????????????????????????# | | ?????????????????????????????# | | ?????????????????????????????# | | ?????????????????????????????# ######## | | ?????????????????????????????# #????# | | ???????????????????????????### ###??# | | ???????????????????#+##????# ! #??# | | ??????????????????# ###### #??# | | ??????????????????# ! ! #??# | | ??????????????????# ###### #??# | | ?????#??????????#### ;#????# #??### | | ?????# ########## ###???##+########? | | ?????+ ; % %# #???# !! !#? | | ????????# ###??# !! #? | | ????????# #### ] ! ! #? | | ???????## * # # !#? | | ???????#; % # ##+########? | | ???????#; g% #???????? | | ???????#; g [# #???????? | | ???????#; i %# ]]] #?????? | | ???????#; # ]] #?????? | | ???????## @ ]# ]] #?????? | | ????????# # #?????? | | ????????# # #????? | | ????????## [= ;;# ###????? | | ?????????# % % ### #?????? | | ????????# =%[= # #????? | | ??????? <%=[ # #????? | | ??????### # *% ###?????? | | ????????## ! #### ???????? | | ?????????# ##??########+##??????? | | ?????????## # ##???????????????????? | | ??????????### ????????????????????? | | ????????????# # ????????????????????? | | ????????????# # ????????????????????? | | ????????????# # ????????????????????? | | ????????????# # ???????????????????? | | ????????????# ? ???????????????????? | | ????????????? ?? ???????????????????? | | ????????????? ??#???????????????????? | | ????????????? ??????????????????????? | | ??????????????????????????????????????? | | ??????????????????????????????????????? | | ??????????????????????????????????????? | | ??????????????????????????????????????? | | ??????????????????????????????????????? | +----------------------------------------------------+ Best States ------------- Heat Dissipation 59 Coolant Potential 100 Energy Generation 37 Energy Capacity 550 Matter Stores 500 Matter Capacity 500 Sight Range 23 Robot Scan Range 15 Terrain Scan Range 20 Terrain Scan Density 10 Jamming Range 14 Base Temperature (-) 200 Armor Coverage 1050 Resistance: KI 20 Resistance: TH 20 Resistance: EX 20 Resistance: EM 20 Resistance: I 20 Resistance: S 20 Resistance: P 20 Evasion (%) 55 Target Analysis 6 Core Analysis 8 Kinecelleration 40 Offensive Hacking 10 Item Schematics ----------------- Arm. Huge Wheel | -7/Factory | Scanalyzed Robot Schematics ------------------ None Fabricated ------------ Arm. Huge Wheel | x2 | -7/Factory Alien Tech Used ----------------- None Achievements -------------- 20k Club Adventurer Charge!!! Explorer We Are Legion Challenges ------------ None Game ------ Seed SeismicMasterDrive Manual? 0 Play Time 02:55:24 Cumulative 40.8 hours Start 2024.04.13 @ 13:01:54 End 2024.04.13 @ 16:02:05 Sessions 1 Manual Loads 0 Difficulty Adventurer Special Mode None Game No. 43 Rogue 0 Adventurer 43 Explorer 0 Win Type - Total 0 Types 0/0/0/0/0/0/0/0/0 Lore% 22 Gallery% 36 Achievement% 28 Wizard Run 0 Options --------- Layout 1 ASCII 0 Keyboard 1 Movement Numpad Keybinds 0 Fullscreen 2 Font 24/Smallcaps Map View 50x35 Zoom Use 0% Tactical HUD 1 Map Filters NONE Filters NONE Steam 1 RUN: 580b8308-ba91-4fc4-8291-5f0bdd331eac